bitfinex-derivatives/quotes_ETHF0:USTF0_20241229
["timestamp","ask_amount","ask_price","bid_price","bid_amount"]
[1735475881908,5.04762683,3393.9,3393.8,41.92611]
[1735475883315,0.8353,3394.0,3393.9,0.2951]
[1735475884511,3.13977906,3394.0,3393.9,0.2951]
[1735475886614,0.8353,3394.0,3393.9,0.2951]
[1735475888408,4.29201859,3394.0,3393.9,0.2951]
[1735475891513,4.73474998,3394.0,3393.9,0.2951]
[1735475894522,4.73474998,3394.0,3393.7,1.172]
[1735475894718,0.2951,3393.9,3393.7,1.46711]
[1735475895617,4.73474998,3394.0,3393.8,0.29511]
[1735475895817,5.44015823,3394.0,3393.8,0.29511]
[1735475896016,5.44015823,3394.0,3393.9,0.2951]
[1735475897223,0.8353,3394.0,3393.9,0.2951]
[1735475898515,4.29591292,3394.0,3393.9,0.2951]
[1735475899419,3.46061292,3394.0,3393.9,0.2951]
[1735475900119,2.30746792,3394.0,3393.9,0.2951]
[1735475901424,0.70492,3394.1,3394.0,0.29509]
[1735475902526,0.70492,3394.1,3394.0,3.50289]
[1735475902722,0.70492,3394.1,3394.0,8.14181175]
[1735475904523,0.70492,3394.1,3394.0,15.24006629]
[1735475905218,0.70492,3394.1,3394.0,56.04006629]
[1735475905927,0.70492,3394.1,3394.0,44.30289]
[1735475906625,0.70492,3394.1,3394.0,41.09509]
[1735475906826,0.70492,3394.1,3394.0,44.30289]
[1735475907230,0.70492,3394.1,3394.0,48.94014747]
[1735475909834,0.70492,3394.1,3394.0,56.03880063]
[1735475911126,0.57244351,3394.1,3394.0,56.03880063]
[1735475911331,0.57244351,3394.1,3394.0,61.03880063]
[1735475912430,0.57244351,3394.1,3394.0,56.03880063]
[1735475912633,0.57244351,3394.1,3394.0,49.08041801]
[1735475913026,0.33604371,3394.1,3394.0,49.08041801]
[1735475914129,0.33604371,3394.1,3394.0,49.3176968]
[1735475914428,2.3455,3394.6,3394.5,0.29505]
[1735475914732,2.3455,3394.6,3394.5,1.46405]
[1735475915327,4.65296792,3394.6,3394.5,1.46405]
[1735475920929,2.3455,3394.6,3394.5,1.46405]
[1735475927944,2.3455,3394.6,3394.4,0.29505]
[1735475928154,2.3455,3394.6,3394.5,1.36625]
[1735475928541,2.3455,3394.6,3394.1,4.63500678]
[1735475928742,0.29506,3394.3,3394.1,5.70630678]
[1735475929044,3.2078,3394.4,3394.1,1.92420678]
[1735475929344,0.29507,3394.2,3394.1,1.92420678]
[1735475930050,0.7377878,3394.2,3394.1,1.166]
[1735475931348,3.9455878,3394.2,3394.1,1.166]
[1735475932140,0.29508,3394.1,3394.0,0.29509]
[1735475932343,0.29508,3394.1,3393.9,1.166]
[1735475932344,0.29509,3394.0,3393.9,0.2951]
[1735475932542,6.555,3394.1,3393.0,10.89825017]
[1735475932846,6.555,3394.1,3393.3,0.29514]
[1735475932847,3.2078,3393.8,3393.3,0.29514]
[1735475933042,0.29515,3393.3,3393.1,42.26116]
[1735475933349,1.555,3393.2,3393.1,0.29516]
[1735475933645,1.555,3393.2,3393.0,8.11851017]
[1735475933849,1.85016,3393.2,3393.0,8.11851017]
[1735475934147,0.29517,3393.1,3393.0,8.41368017]
[1735475934348,0.29517,3393.1,3393.0,8.11851017]
[1735475934745,0.29517,3393.1,3393.0,1.166]
[1735475934940,2.2928778,3393.2,3393.0,1.46117]
[1735475935338,1.9977178,3393.2,3393.0,1.46117]
[1735475935652,0.29517,3393.1,3393.0,0.29518]
[1735475936947,4.18936381,3393.1,3393.0,0.29518]
[1735475937141,3.89419381,3393.1,3393.0,0.29518]
[1735475938245,1.85016,3393.2,3393.0,0.29518]
[1735475938246,5.30163601,3393.2,3393.0,0.29518]
[1735475939244,5.00647601,3393.2,3393.1,41.09517]
[1735475940645,5.00647601,3393.2,3393.1,0.29517]
[1735475941249,5.00647601,3393.2,3393.1,41.09517]
[1735475941448,5.00647601,3393.2,3393.1,0.29517]
[1735475941449,1.555,3393.2,3393.1,0.29517]
[1735475941755,1.85016,3393.2,3393.1,0.29517]
[1735475942648,1.555,3393.2,3393.1,0.29517]
[1735475942956,2.2975962,3393.2,3393.1,0.29517]
[1735475943656,2.2975962,3393.2,3393.1,1.08517]
[1735475944550,6.65927601,3393.4,3393.3,0.29515]
[1735475944551,3.2078,3393.4,3393.3,0.29515]
[1735475947354,3.2078,3393.4,3393.3,1.46215]
[1735475948951,4.0395,3393.8,3393.3,1.167]
[1735475949153,4.0395,3393.8,3393.7,0.29512]
[1735475949652,4.0395,3393.8,3393.3,1.167]
[1735475949953,3.2078,3393.4,3393.3,1.167]
[1735475950152,3.2078,3393.4,3393.3,1.46215]
[1735475952256,3.2078,3393.4,3393.1,0.79]
[1735475952257,0.29515,3393.3,3393.2,1.46215]
[1735475953148,3.2078,3393.4,3393.2,1.167]
[1735475953348,3.50294,3393.4,3393.3,0.29515]
[1735475953751,3.2078,3393.4,3393.1,0.79]
[1735475953948,3.2078,3393.4,3392.8,1.167]
[1735475954259,3.50298,3392.9,3392.8,0.29519]
[1735475954852,3.50298,3392.9,3392.5,0.8597]
[1735475954853,3.2078,3392.9,3392.6,0.8555]
[1735475955158,0.2952,3392.8,3392.7,1.4622]
[1735475955658,0.2952,3392.8,3392.6,0.8555]
[1735475955659,3.50299,3392.9,3392.8,0.29519]
[1735475955957,3.50298,3392.9,3392.8,0.29519]
[1735475956455,3.50298,3392.9,3392.7,1.4622]
[1735475956955,3.50298,3392.9,3392.7,1.167]
[1735475957159,3.50298,3392.9,3392.8,0.29519]
[1735475957160,3.2078,3392.9,3392.8,0.29519]
[1735475958353,3.2078,3392.9,3392.8,1.172]
[1735475958554,3.2078,3392.9,3392.8,1.46719]
[1735475959760,3.2078,3392.9,3392.8,42.26719]
[1735475960152,3.2078,3393.1,3393.0,0.29518]
[1735475963067,2.2975962,3393.4,3393.3,0.29515]
[1735475964161,3.50293,3393.5,3392.9,0.8702]
[1735475964359,3.50293,3393.5,3393.4,0.29514]
[1735475964556,0.29515,3393.4,3393.3,0.29514]
[1735475965357,0.29515,3393.4,3392.9,0.8702]
[1735475965358,0.29515,3393.4,3393.0,0.29518]
[1735475965557,0.29515,3393.4,3393.3,0.29515]
[1735475967159,2.2975962,3393.4,3393.3,0.29515]
[1735475968465,3.2078,3393.5,3393.3,0.29515]
[1735475968668,0.29514,3393.4,3393.3,0.29515]
[1735475969256,3.50294,3393.4,3393.3,0.29515]
[1735475969865,5.8005362,3393.4,3393.3,0.29515]
[1735475970966,5.5053962,3393.4,3393.3,0.29515]
[1735475971766,7.10213682,3393.4,3393.3,0.29515]
[1735475973872,3.65066081,3393.4,3393.3,0.29515]
[1735475974967,0.44286081,3393.4,3393.3,0.29515]
[1735475975271,5.04892483,3393.4,3393.3,0.29515]
[1735475976272,0.44286081,3393.4,3393.3,0.29515]
[1735475976976,5.75616764,3393.5,3393.4,0.29514]
[1735475978268,3.46100763,3393.5,3393.4,0.29514]
[1735475982574,6.66880763,3393.6,3393.5,0.29513]
[1735475983976,6.66880763,3393.6,3393.5,1.46713]
[1735475985072,3.46100763,3393.6,3393.5,1.46713]
[1735475985278,6.66880763,3393.6,3393.5,1.46713]
[1735475992177,3.2078,3393.6,3393.5,1.46713]
[1735475994868,3.50292,3393.6,3393.5,1.172]
[1735475995685,0.29513,3393.5,3393.4,0.29514]
[1735475995980,3.50293,3393.6,3393.4,1.169]
[1735475996179,3.50293,3393.6,3393.5,0.29513]
[1735475996479,3.50293,3393.6,3393.4,1.46414]
[1735475996480,0.29513,3393.5,3393.4,1.46414]
[1735475997172,7.59891158,3393.6,3393.5,0.29513]
[1735475997880,8.04173368,3393.6,3393.5,0.29513]
[1735475998479,0.29513,3393.5,3393.4,1.46414]
[1735476000679,0.29513,3393.5,3393.4,1.169]
[1735476000884,4.83393368,3393.5,3393.4,1.169]
[1735476001377,0.29516,3393.2,3393.1,0.29516]
[1735476001574,3.50296,3393.2,3393.1,0.29516]
[1735476001787,3.50296,3393.2,3393.1,1.46416]
[1735476002180,3.50296,3393.2,3393.1,0.29516]
[1735476002377,4.35946,3393.2,3393.1,1.46416]
[1735476002684,4.35946,3393.2,3393.1,0.29516]
[1735476002685,9.41242755,3393.2,3393.1,0.29516]
[1735476003385,0.29518,3393.0,3392.9,1.46418]
[1735476004480,5.34814755,3393.0,3392.9,1.46418]
[1735476005989,5.05296755,3393.0,3392.9,1.46418]
[1735476006180,4.54039392,3393.0,3392.9,1.46418]
[1735476007482,5.75616764,3393.2,3393.1,0.29517]
[1735476008285,5.75616764,3393.2,3393.1,41.09517]
[1735476008482,3.45942954,3393.3,3393.1,40.8]
[1735476008686,3.45942954,3393.3,3393.2,1.94576]
[1735476009285,3.45942954,3393.3,3393.2,42.74576]
[1735476013990,3.45942954,3393.3,3393.2,1.94576]
[1735476014486,3.45942954,3393.3,3393.2,42.74576]
[1735476014789,2.30676678,3393.3,3393.2,42.74576]
[1735476014992,0.98716678,3393.3,3393.2,42.74576]
[1735476016390,3.45942954,3393.4,3393.3,0.29515]
[1735476016585,2.13982954,3393.4,3393.3,0.29515]
[1735476017580,7.82037273,3393.6,3393.2,42.4506]
[1735476017581,3.2078,3393.6,3393.5,0.29513]
[1735476021392,4.61257273,3394.0,3393.9,0.2951]
[1735476021593,4.61257273,3394.0,3393.9,1.4621]
[1735476021785,9.52456764,3394.2,3394.0,0.29509]
[1735476021786,4.61257273,3394.1,3394.0,0.29509]
[1735476021992,4.61257273,3394.1,3394.0,1.11969]
[1735476023198,0.44273094,3394.1,3394.0,1.11969]
[1735476025989,3.7684,3394.2,3394.1,0.29508]
[1735476026193,3.2078,3394.2,3394.1,0.29508]
[1735476026393,3.2078,3394.2,3394.1,2.00908]
[1735476027703,3.65051996,3394.2,3394.1,2.00908]
[1735476028601,3.2078,3394.2,3394.1,2.00908]
[1735476029805,3.2078,3394.2,3394.1,1.16618]
[1735476029997,3.2078,3394.2,3394.1,0.29508]
[1735476030306,4.0344,3394.2,3393.7,0.8398]
[1735476030496,4.0344,3394.2,3393.8,1.167]
[1735476030697,0.29509,3394.0,3393.8,1.4621]
[1735476031000,0.8704,3393.9,3393.8,1.4621]
[1735476031693,0.8704,3393.9,3393.8,0.2951]
[1735476031894,0.8704,3393.9,3393.8,1.4621]
[1735476034004,1.31316944,3393.9,3393.8,1.4621]
[1735476034708,4.52096944,3393.9,3393.8,1.167]
[1735476035707,4.52096944,3393.9,3393.8,1.46211]
[1735476036206,9.13354217,3393.9,3393.8,1.46211]
[1735476036399,9.99734217,3393.9,3393.8,1.46211]
[1735476038507,9.99734217,3393.9,3393.8,0.29511]
[1735476038704,9.99734217,3393.9,3393.8,1.46211]
[1735476038901,9.99734217,3393.9,3393.7,1.167]
[1735476039099,0.29514,3393.5,3393.3,0.29515]
[1735476039305,1.6419,3393.4,3393.3,1.46215]
[1735476039496,2.76324,3393.4,3393.3,1.167]
[1735476039699,2.4681,3393.4,3393.3,1.167]
[1735476039904,2.4681,3393.4,3393.3,1.46215]
[1735476041009,2.91086944,3393.4,3393.3,1.46215]
[1735476041911,7.52240825,3393.4,3393.3,1.46215]
[1735476042303,7.81754825,3393.4,3393.3,1.167]
[1735476042806,7.81754825,3393.4,3393.3,1.46215]
[1735476043107,7.52240825,3393.4,3393.3,1.46215]
[1735476043904,12.71098415,3393.4,3393.3,1.46215]
[1735476044908,13.00612415,3393.4,3393.3,1.46215]
[1735476045714,3.20600944,3393.4,3393.3,1.46215]
[1735476046814,7.81690442,3393.4,3393.3,1.46215]
[1735476048309,7.81690442,3393.4,3393.3,1.167]
[1735476049414,7.24787485,3393.4,3393.3,1.167]
[1735476051116,6.95273485,3393.4,3393.3,1.45815]
[1735476051322,7.24788485,3393.4,3393.3,1.45815]
[1735476052119,3.20601944,3393.4,3393.3,1.45815]
[1735476053624,0.44276944,3393.4,3393.3,1.45815]
[1735476056625,3.2078,3393.5,3393.4,0.29514]
[1735476056824,3.2078,3393.5,3393.4,1.45814]
[1735476057426,4.61098856,3393.8,3393.4,4.66594]
[1735476057730,4.61098856,3393.8,3393.7,0.29512]
[1735476058228,4.61098856,3393.9,3393.4,4.66594]
[1735476058426,4.61098856,3393.9,3393.8,0.29511]
[1735476058627,3.2078,3393.7,3393.6,0.29512]
[1735476059731,3.2078,3393.8,3393.7,0.29511]
[1735476060722,3.65058576,3393.8,3393.7,0.29511]
[1735476060929,0.29512,3393.7,3393.5,0.29513]
[1735476061126,1.09682,3393.7,3393.6,1.163]
[1735476061930,6.96199432,3393.7,3393.6,1.163]
[1735476063029,6.96199432,3393.7,3393.6,1.45812]
[1735476063030,5.05377432,3393.7,3393.6,1.45812]
[1735476064424,0.44278576,3393.7,3393.6,1.45812]
[1735476065528,3.2078,3393.8,3393.7,0.29512]
[1735476065922,3.2078,3393.8,3393.7,1.12202]
[1735476066428,3.2078,3393.8,3393.7,2.74012]
[1735476066730,3.65058261,3393.8,3393.7,2.74012]
[1735476067124,0.44278261,3393.8,3393.7,5.94792]
[1735476067928,0.44278261,3393.8,3393.7,6.18141522]
[1735476068422,5.05377117,3394.3,3394.2,0.29507]
[1735476070229,3.2078,3394.4,3393.8,0.73775]
[1735476070435,0.7884,3394.5,3394.4,0.29505]
[1735476070636,4.61098856,3394.6,3394.4,1.163]
[1735476070836,4.61098856,3394.6,3394.5,0.29505]
[1735476071037,4.61098856,3394.6,3394.5,1.96125]
[1735476071934,5.05365275,3394.7,3394.6,0.29504]
[1735476075040,5.05365275,3394.7,3394.6,41.09504]
[1735476076036,3.2078,3394.8,3394.6,40.8]
[1735476076237,3.2078,3394.8,3394.7,0.29503]
[1735476076833,3.2078,3394.8,3394.7,41.09503]
[1735476079746,3.45600581,3395.4,3395.3,0.29498]
[1735476080047,3.45600581,3395.4,3395.3,1.45998]
[1735476080338,4.64725581,3395.7,3395.4,0.29496]
[1735476080642,4.35230581,3395.7,3395.6,0.29495]
[1735476081445,4.35230581,3395.7,3395.4,0.8937]
[1735476081742,4.35230581,3395.7,3395.5,0.29495]
[1735476081943,0.8963,3395.7,3395.5,0.29495]
[1735476082545,0.8963,3395.7,3395.6,0.29495]
[1735476087048,0.8963,3395.7,3395.5,1.164]
[1735476087348,0.29495,3395.6,3395.5,1.164]
[1735476087749,1.19125,3395.7,3395.5,1.164]
[1735476087946,1.19125,3395.7,3395.5,1.45895]
[1735476088745,0.8963,3395.7,3395.6,1.164]
[1735476088953,0.8963,3395.7,3395.6,1.45895]
[1735476099055,3.2078,3395.8,3395.6,1.164]
[1735476099259,3.2078,3395.8,3395.7,0.29494]
[1735476099759,3.2078,3395.8,3395.7,41.09494]
[1735476102760,0.8279,3395.9,3395.8,0.29493]
[1735476102958,4.0357,3395.9,3395.8,0.29493]
[1735476104159,3.2078,3395.9,3395.8,1.09653]
[1735476104562,3.2078,3395.9,3395.8,41.89653]
[1735476108660,1.0948,3396.2,3396.0,0.29491]
[1735476108859,1.0948,3396.2,3396.1,0.29491]
[1735476109260,4.55080581,3396.2,3396.1,0.29491]
[1735476109462,4.25590581,3396.2,3396.1,0.29491]
[1735476110562,0.7999,3396.2,3396.1,0.29491]
[1735476111971,4.25590581,3396.2,3396.1,0.29491]
[1735476113672,4.69839963,3396.2,3396.1,0.29491]
[1735476113977,1.24239382,3396.2,3396.1,0.29491]
[1735476114973,5.85338238,3396.2,3396.1,0.29491]
[1735476115169,9.06118238,3396.2,3396.1,0.29491]
[1735476116674,1.24239382,3396.2,3396.1,0.29491]
[1735476117075,4.45019382,3396.2,3396.1,0.29491]
[1735476117279,4.74509382,3396.2,3396.1,0.29491]
[1735476118075,14.53589596,3396.2,3396.1,0.29491]
[1735476119683,8.77972832,3396.2,3396.1,0.29491]
[1735476119881,5.57192832,3396.2,3396.1,0.29491]
[1735476120177,8.77972832,3396.2,3396.1,0.29491]
[1735476124489,5.57192832,3396.2,3396.1,0.29491]
[1735476124687,8.77972832,3396.2,3396.1,0.29491]
[1735476126182,8.48482832,3396.2,3395.8,40.8]
[1735476126493,0.29492,3395.9,3395.8,41.09493]
[1735476126686,0.29492,3395.9,3395.8,42.25793]
[1735476128592,4.77204832,3395.9,3395.8,42.25793]
[1735476128797,4.77204832,3395.9,3395.8,41.963]
[1735476129091,0.29493,3395.8,3395.7,1.45794]
[1735476129300,5.89233,3395.8,3395.7,1.45794]
[1735476129494,10.5974,3395.8,3395.3,4.63273575]
[1735476129796,3.50277,3395.4,3395.3,4.63273575]
[1735476131094,0.29498,3395.3,3395.2,1.163]
[1735476131288,2.68458,3395.3,3395.2,1.163]
[1735476131492,2.3896,3395.3,3394.8,1.17432]
[1735476131701,3.50281,3394.9,3394.8,0.29502]
[1735476131891,3.50281,3394.9,3394.8,1.45802]
[1735476132499,3.2078,3394.9,3394.8,1.45802]
[1735476132801,13.46156006,3394.9,3394.8,1.45802]
[1735476133192,13.46156006,3394.9,3394.8,0.29502]
[1735476133493,13.46156006,3394.9,3394.8,1.45802]
[1735476133797,3.65029382,3394.9,3394.8,1.45802]
[1735476134898,3.65029382,3394.9,3394.8,42.25802]
[1735476135301,3.2078,3394.9,3394.8,42.25802]
[1735476136698,6.67121032,3394.9,3394.8,42.25802]
[1735476137098,3.46341032,3394.9,3394.8,42.25802]
[1735476137996,3.46341032,3394.9,3394.8,42.25702]
[1735476138197,2.30837479,3394.9,3394.8,42.25702]
[1735476140811,3.46341032,3395.0,3394.9,0.29501]
[1735476141099,3.46341032,3395.0,3394.9,1.08401]
[1735476141398,3.46341032,3395.0,3394.9,1.88101]
[1735476143898,5.77030691,3395.0,3394.9,1.88101]
[1735476144097,2.30689659,3395.0,3394.9,1.88101]
[1735476145401,6.67121032,3395.1,3395.0,0.295]
[1735476146901,3.65042005,3395.1,3395.0,0.295]
[1735476147197,3.65042005,3395.1,3394.9,1.586]
[1735476147406,3.65042005,3395.1,3395.0,1.162]
[1735476147601,3.94541005,3395.1,3395.0,1.162]
[1735476148802,3.65042005,3395.1,3395.0,1.162]
[1735476148997,3.65042005,3395.1,3395.0,1.457]
[1735476149208,3.94541005,3395.1,3395.0,1.457]
[1735476149601,8.56329047,3395.1,3395.0,1.457]
[1735476150609,7.40460896,3395.1,3395.0,1.457]
[1735476151110,7.10961896,3395.1,3395.0,1.457]
[1735476151908,7.10961896,3395.1,3395.0,0.295]
[1735476152205,7.10961896,3395.1,3394.9,1.45701]
[1735476152412,0.295,3395.0,3394.9,1.162]
[1735476152913,0.73762005,3395.0,3394.9,1.162]
[1735476153109,0.44262005,3395.0,3394.9,1.45701]
[1735476154210,3.2078,3395.0,3394.9,1.45701]
[1735476155514,7.11023034,3395.0,3394.9,1.162]
[1735476155815,7.40523034,3395.0,3394.9,1.162]
[1735476157013,8.56330047,3395.0,3394.9,1.162]
[1735476158316,3.94542005,3395.0,3394.9,1.162]
[1735476159719,3.5028,3395.0,3394.9,1.162]
[1735476159908,3.5028,3395.0,3394.9,1.45701]
[1735476161119,3.94542005,3395.0,3394.9,1.45701]
[1735476162519,0.73762005,3395.0,3394.9,1.45701]
[1735476162821,3.94542005,3395.0,3394.9,1.45701]
[1735476163519,3.94542005,3395.0,3394.9,42.25701]
[1735476164324,3.94542005,3395.0,3394.9,1.45701]
[1735476165019,0.73762005,3395.0,3394.9,1.45701]
[1735476165222,5.35190661,3395.0,3394.9,1.45701]
[1735476165417,8.55970661,3395.0,3394.9,1.45701]
[1735476165618,8.26470661,3395.0,3394.9,1.45701]
[1735476167417,8.55970661,3395.0,3394.9,1.45701]
[1735476169219,8.26470661,3395.0,3394.9,1.45701]
[1735476169928,13.46073971,3395.0,3394.9,1.45701]
[1735476170226,13.75573971,3395.0,3394.9,1.45701]
[1735476170821,10.54793971,3395.0,3394.9,1.45701]
[1735476171022,0.295,3395.0,3394.9,1.45701]
[1735476171228,3.5028,3395.0,3394.9,1.45701]
[1735476171425,3.2078,3395.0,3394.9,1.45701]
[1735476172815,7.68410797,3395.0,3394.9,1.45701]
[1735476173623,4.47630797,3395.0,3394.9,1.45701]
[1735476173819,7.68410797,3395.0,3394.9,1.45701]
[1735476174027,13.46073971,3395.0,3394.9,1.45701]
[1735476175421,3.65042005,3395.0,3394.9,1.45701]
[1735476175819,5.77663174,3395.1,3395.0,0.295]
[1735476176126,5.77663174,3395.1,3395.0,1.8591]
[1735476177322,3.46984578,3395.1,3395.0,1.8591]
[1735476177525,3.46984578,3395.1,3395.0,3.0171]
[1735476178728,3.01914147,3395.2,3395.0,7.7221]
[1735476179025,1.45358546,3395.2,3395.1,1.00649]
[1735476179924,2.31236987,3395.2,3395.1,5.63922575]
[1735476180324,2.31236987,3395.2,3395.1,46.43922575]
[1735476180522,3.76416105,3395.6,3395.5,0.29496]
[1735476180720,3.40503174,3395.8,3395.5,3.2078]
[1735476180918,6.91739408,3396.2,3395.7,0.29494]
[1735476181222,6.91739408,3396.2,3396.1,0.29491]
[1735476181429,10.12519408,3396.7,3395.9,3.2078]
[1735476181625,10.42005408,3396.7,3396.3,0.29488]
[1735476181923,10.12519408,3396.7,3396.4,40.8]
[1735476182126,0.29486,3396.6,3396.2,0.29489]
[1735476182325,3.2078,3396.3,3396.2,0.29489]
[1735476183231,3.2078,3396.3,3396.1,1.158]
[1735476183428,1.7909,3396.2,3396.1,1.158]
[1735476184030,1.496,3396.2,3395.9,1.158]
[1735476184328,0.29492,3396.0,3395.9,0.0173]
[1735476184923,0.29494,3395.8,3395.7,1.158]
[1735476185528,1.07064,3395.8,3395.7,1.158]
[1735476186229,0.29497,3395.5,3395.4,1.158]
[1735476188124,0.7388,3395.6,3395.4,1.45296]
[1735476190537,0.7388,3395.6,3395.4,1.158]
[1735476190827,0.7388,3395.6,3395.4,1.45296]
[1735476191031,1.03375,3395.6,3395.4,1.45296]
[1735476192134,1.03375,3395.6,3395.4,1.158]
[1735476192628,0.29497,3395.4,3395.2,0.29498]
[1735476192826,0.7388,3395.6,3395.1,4.3658]
[1735476193031,3.2078,3395.2,3394.9,40.8]
[1735476193222,0.701,3395.1,3394.9,40.8]
[1735476193426,0.29502,3394.9,3394.7,1.45302]
[1735476193726,3.2078,3394.8,3394.7,1.45302]
[1735476195429,3.2078,3394.8,3394.7,0.29502]
[1735476195628,0.29506,3394.4,3394.2,1.45307]
[1735476195925,3.2078,3394.8,3394.2,1.45307]
[1735476195926,1.466,3394.3,3394.2,1.158]
[1735476196125,1.76107,3394.3,3394.1,40.8]
[1735476196324,1.76107,3394.3,3394.1,41.958]
[1735476196524,0.29507,3394.2,3394.1,40.8]
[1735476196731,0.29507,3394.2,3394.1,1.158]
[1735476198630,0.98097,3394.2,3394.1,1.158]
[1735476198929,0.98097,3394.2,3393.8,40.8]
[1735476198930,0.6859,3394.2,3393.8,40.8]
[1735476199122,0.2951,3393.9,3393.8,41.974]
[1735476199723,0.2951,3393.9,3393.8,42.26911]
[1735476199934,0.2951,3393.9,3393.8,41.974]
[1735476200832,3.8937,3394.2,3393.8,41.974]
[1735476201036,0.29513,3393.5,3393.3,0.29515]
[1735476201227,5.3937,3393.4,3392.9,5.8064222]
[1735476201427,5.3937,3393.4,3393.2,0.29516]
[1735476201833,5.3937,3393.4,3393.3,0.29515]
[1735476202134,5.3937,3393.4,3393.2,0.29515]
[1735476202334,5.3937,3393.4,3393.2,1.174]
[1735476202538,5.3937,3393.4,3393.3,0.29515]
[1735476204035,5.3937,3393.4,3393.3,1.47015]
[1735476204538,2.1859,3393.4,3393.3,1.47015]
[1735476211142,2.1859,3393.4,3393.3,1.175]
[1735476211343,2.48104,3393.4,3393.3,1.175]
[1735476212744,2.48104,3393.4,3393.2,0.29516]
[1735476213341,2.48104,3393.4,3393.3,1.175]
[1735476216045,2.1859,3393.4,3393.3,1.175]
[1735476216246,0.6931,3393.4,3393.3,1.47015]
[1735476220343,3.2078,3393.7,3393.6,0.29512]
[1735476221141,4.19219,3394.1,3393.9,0.29509]
[1735476221441,3.8971,3394.1,3393.5,0.1792]
[1735476221645,4.19218,3394.1,3393.9,0.29509]
[1735476221842,3.8971,3394.1,3394.0,0.29509]
[1735476224049,3.2078,3394.1,3394.0,0.29509]
[1735476224841,3.2078,3394.1,3394.0,41.09509]
[1735476225247,3.2078,3394.1,3394.0,0.29509]
[1735476228254,3.2078,3394.2,3394.1,0.29508]
[1735476228556,3.2078,3394.2,3394.1,1.47008]
[1735476230255,0.29508,3394.1,3393.7,1.174]
[1735476230451,3.50291,3393.8,3393.6,0.29512]
[1735476230658,1.451,3393.7,3393.6,1.46912]
[1735476232260,0.704,3393.7,3393.6,1.46912]
[1735476236157,3.2078,3394.2,3394.1,0.29508]
[1735476236753,3.2078,3394.2,3394.1,41.09508]
[1735476236954,3.2078,3394.2,3394.1,0.29508]
[1735476237454,4.6353,3394.2,3394.1,41.09508]
[1735476237752,1.4275,3394.2,3394.1,41.09508]
[1735476238261,4.6353,3394.2,3394.1,41.09508]
[1735476239458,1.4275,3394.2,3394.1,41.09508]
[1735476239654,4.6353,3394.2,3394.1,41.09508]
[1735476239959,4.93037,3394.2,3394.1,0.29508]
[1735476240563,4.6353,3394.2,3394.1,0.29508]
[1735476241357,1.4275,3394.2,3394.1,0.29508]
[1735476241660,8.09999657,3394.2,3394.1,0.29508]
[1735476242263,8.39506657,3394.2,3394.0,0.29508]
[1735476242463,0.29509,3394.0,3393.9,0.2951]
[1735476242656,0.2951,3393.9,3393.8,1.4691]
[1735476242961,0.9885,3393.9,3393.8,1.4691]
[1735476243762,0.6934,3393.9,3393.8,1.4691]
[1735476244262,4.1963,3393.9,3393.8,1.4691]
[1735476244559,0.29512,3393.6,3393.5,41.09513]
[1735476244759,0.29512,3393.6,3393.5,42.26913]
[1735476245562,3.76117947,3393.6,3393.5,42.26913]
[1735476245761,3.76117947,3393.6,3393.5,41.09513]
[1735476246063,3.76117947,3393.6,3393.5,42.26913]
[1735476246964,3.76117947,3393.6,3393.5,41.974]
[1735476248563,0.29512,3393.6,3393.5,41.974]
[1735476249665,0.29512,3393.6,3392.9,3.94577]
[1735476249666,9.18228766,3393.7,3392.9,3.94577]
[1735476249960,0.29514,3393.4,3393.3,0.29515]
[1735476250359,0.29514,3393.4,3393.3,1.46915]
[1735476250866,9.18228766,3393.7,3393.3,1.174]
[1735476251259,9.18228766,3393.7,3393.6,0.29512]
[1735476251460,5.97448766,3393.7,3393.6,0.29512]
[1735476251760,4.59688766,3393.7,3393.6,0.29512]
[1735476252063,3.46403966,3393.7,3393.6,0.29512]
[1735476252363,3.46403966,3393.7,3393.6,41.09512]
[1735476253467,3.46403966,3393.8,3393.7,0.29512]
[1735476254362,4.19683966,3393.8,3393.7,0.29512]
[1735476259666,7.40463966,3393.8,3393.7,0.29512]
[1735476260067,4.19683966,3393.8,3393.7,0.29512]
[1735476260367,7.40463966,3393.8,3393.7,0.29512]
[1735476261469,3.9406,3393.8,3393.7,0.29512]
[1735476263172,0.7328,3393.8,3393.7,0.29512]
[1735476263468,3.9406,3393.8,3393.7,0.29512]
[1735476264070,0.7328,3393.8,3393.7,0.29512]
[1735476265368,5.29028766,3393.9,3393.8,0.29511]
[1735476266972,3.4670084,3394.1,3394.0,0.29509]
[1735476267969,3.4670084,3394.4,3393.9,4.6324222]
[1735476268166,3.4670084,3394.4,3394.3,0.29506]
[1735476268368,3.4670084,3394.4,3394.3,42.26206]
[1735476269768,0.6989,3394.5,3394.3,41.967]
[1735476269972,0.6989,3394.5,3394.4,0.29505]
[1735476271071,3.4670084,3394.6,3394.3,41.967]
[1735476271271,0.6805,3394.6,3394.5,0.29505]
[1735476272873,4.1455208,3394.6,3394.5,0.29505]
[1735476275176,4.4405608,3394.6,3394.5,0.29505]
[1735476275478,0.97554,3394.6,3394.5,0.29505]
[1735476276574,0.6805,3394.6,3394.5,0.29505]
[1735476277372,0.97554,3394.6,3394.5,0.29505]
[1735476278080,4.43909003,3394.6,3394.5,0.29505]
[1735476279767,4.43909003,3394.6,3394.5,1.46205]
[1735476280677,0.97554,3394.6,3394.5,1.46205]
[1735476280877,4.18334,3394.6,3394.5,1.46205]
[1735476282877,4.18334,3394.6,3394.5,1.167]
[1735476283478,0.29505,3394.5,3394.3,1.167]
[1735476283679,0.29505,3394.4,3394.3,1.46206]
[1735476284682,3.75826939,3394.4,3394.3,1.46206]